[Event "FIDE Open World Rapid 2024"]
[Site "New York"]
[Date "2024.12.28"]
[Round "8.29"]
[White "Rosen, Eric"]
[Black "Gagunashvili, Merab"]
[Result "0-1"]
[ECO "D02"]
[WhiteElo "2377"]
[BlackElo "2541"]
[Annotator "ChessBase"]
[PlyCount "196"]
[EventDate "2024.12.14"]
[EventType "swiss"]
[EventCountry "USA"]
[SourceTitle "playchess.com"]
[Source "ChessBase"]
[SourceQuality "1"]
[TimeControl "900+10"]

1. d4 {[%emt 0:00:02]} d5 {[%emt 0:00:01]} 2. Bf4 {[%emt 0:00:02]} Nf6 {[%emt 0:00:02]} 3. Nf3 {[%emt 0:00:02]} c5 {[%emt 0:00:03]} 4. e3 {[%emt 0:00:01]} Qb6 {[%emt 0:00:01]} 5. Nc3 {[%emt 0:00:09]} cxd4 {[%emt 0:00:22]} 6. exd4 {[%emt 0:00:03]} Bg4 {[%emt 0:00:15]} 7. Nb5 {[%emt 0:00:35]} Na6 {[%emt 0:00:03]} 8. c3 {[%emt 0:00:12]} Qe6+ {[%emt 0:01:31]} 9. Be3 {[%emt 0:00:55]} Bxf3 {[%emt 0:00:54]} 10. Qxf3 {[%emt 0:00:47]} g6 {[%emt 0:00:07]} 11. Bd3 {[%emt 0:01:46]} Bh6 {[%emt 0:00:36]} 12. O-O {[%emt 0:00:24]} Bxe3 {[%emt 0:00:02]} 13. fxe3 {[%emt 0:00:03]} O-O {[%emt 0:00:05]} 14. Rae1 {[%emt 0:00:15]} Ne4 {[%emt 0:00:59]} 15. Bxe4 {[%emt 0:01:34]} dxe4 {[%emt 0:00:01]} 16. Qf4 {[%emt 0:00:01]} Qc4 {[%emt 0:00:41]} 17. Na3 {[%emt 0:04:18]} Qxa2 {[%emt 0:00:04]} 18. Re2 {[%emt 0:00:21]} Qe6 {[%emt 0:00:18]} 19. Ref2 {[%emt 0:02:06]} f5 {[%emt 0:00:28]} 20. h3 {[%emt 0:00:44]} Rac8 {[%emt 0:00:26]} 21. Nb5 {[%emt 0:00:26]} Qd5 {[%emt 0:01:27]} 22. Na3 {[%emt 0:00:18]} Nc7 {[%emt 0:00:28]} 23. c4 {[%emt 0:00:20]} Qd6 {[%emt 0:00:03]} 24. Qh4 {[%emt 0:00:23]} e5 {[%emt 0:00:40]} 25. d5 {[%emt 0:00:47]} b5 {[%emt 0:02:40]} 26. Rd1 {[%emt 0:00:39]} a6 {[%emt 0:00:25]} 27. cxb5 {[%emt 0:00:53]} Nxb5 {[%emt 0:00:07]} 28. Nxb5 {[%emt 0:00:46]} axb5 {[%emt 0:00:01]} 29. Qg5 {[%emt 0:00:01]} Kg7 {[%emt 0:00:39]} 30. h4 {[%emt 0:00:20]} h6 {[%emt 0:01:02]} 31. Qg3 {[%emt 0:00:01]} f4 {[%emt 0:00:56]} 32. Qg4 {[%emt 0:00:04]} h5 {[%emt 0:02:08]} 33. Qe2 {[%emt 0:00:02]} Rc5 {[%emt 0:00:23]} 34. exf4 {[%emt 0:00:23]} Rxd5 {[%emt 0:00:03]} 35. Re1 {[%emt 0:00:34]} exf4 {[%emt 0:01:09]} 36. Qxe4 {[%emt 0:00:02]} Rf7 {[%emt 0:00:06]} 37. Ref1 {[%emt 0:00:18]} Rdf5 {[%emt 0:00:10]} 38. Rf3 {[%emt 0:00:33]} Qf6 {[%emt 0:00:09]} 39. Qe2 {[%emt 0:00:19]} Qxh4 {[%emt 0:00:07]} 40. Qd2 {[%emt 0:00:07]} Qf6 {[%emt 0:00:07]} 41. Rd3 {[%emt 0:00:03]} Qb6+ {[%emt 0:00:18]} 42. Kh1 {[%emt 0:00:04]} Qc5 {[%emt 0:00:35]} 43. b4 {[%emt 0:00:11]} Qe7 {[%emt 0:00:00]} 44. Qb2+ {[%emt 0:00:19]} Qf6 {[%emt 0:00:00]} 45. Qd2 {[%emt 0:00:01]} Qh4+ {[%emt 0:00:13]} 46. Rh3 {[%emt 0:00:06]} Qg4 {[%emt 0:00:07]} 47. Qd4+ {[%emt 0:00:10]} Kh7 {[%emt 0:00:03]} 48. Rhf3 {[%emt 0:00:05]} Qh4+ {[%emt 0:00:10]} 49. Rh3 {[%emt 0:00:05]} Qf6 {[%emt 0:00:02]} 50. Qd3 {[%emt 0:00:05]} Kh6 {[%emt 0:00:05]} 51. Qd2 {[%emt 0:00:07]} Qe6 {[%emt 0:00:19]} 52. Rd3 {[%emt 0:00:04]} Kh7 {[%emt 0:00:07]} 53. Rh3 {[%emt 0:00:33]} Qe4 {[%emt 0:00:12]} 54. Re1 {[%emt 0:00:12]} Qb7 {[%emt 0:00:17]} 55. Rf3 {[%emt 0:00:15]} Rd5 {[%emt 0:00:14]} 56. Qc1 {[%emt 0:00:11]} Rd4 {[%emt 0:00:14]} 57. Qc3 {[%emt 0:00:15]} Qd7 {[%emt 0:00:04]} 58. Qc5 {[%emt 0:00:09]} Qd5 {[%emt 0:00:22]} 59. Qc8 {[%emt 0:00:16]} Rd1 {[%emt 0:00:11]} 60. Rxd1 {[%emt 0:00:07]} Qxd1+ {[%emt 0:00:01]} 61. Kh2 {[%emt 0:00:01]} Qe1 {[%emt 0:00:02]} 62. Qc5 {[%emt 0:00:15]} Qe2 {[%emt 0:00:06]} 63. Rxf4 {[%emt 0:00:12]} Rxf4 {[%emt 0:00:09]} 64. Qc7+ {[%emt 0:00:01]} Kg8 {[%emt 0:00:08]} 65. Qxf4 {[%emt 0:00:02]} Qe8 {[%emt 0:00:12]} 66. Qd6 {[%emt 0:00:14]} Kf7 {[%emt 0:00:05]} 67. Qd5+ {[%emt 0:00:12]} Kf6 {[%emt 0:00:02]} 68. Qf3+ {[%emt 0:00:05]} Kg7 {[%emt 0:00:05]} 69. Qc3+ {[%emt 0:00:07]} Kh6 {[%emt 0:00:04]} 70. Qd2+ {[%emt 0:00:24]} Kh7 {[%emt 0:00:01]} 71. Qd6 {[%emt 0:00:03]} Qf7 {[%emt 0:00:08]} 72. Qe5 {[%emt 0:00:14]} Qf5 {[%emt 0:00:05]} 73. Qe7+ {[%emt 0:00:14]} Kh6 {[%emt 0:00:01]} 74. Qd6 {[%emt 0:00:12]} h4 {[%emt 0:00:09]} 75. Qe7 {[%emt 0:00:12]} g5 {[%emt 0:00:22]} 76. Qd6+ {[%emt 0:00:06]} Kh5 {[%emt 0:00:03]} 77. Qe7 {[%emt 0:00:09]} Kg6 {[%emt 0:00:39]} 78. Qe8+ {[%emt 0:00:05]} Kg7 {[%emt 0:00:10]} 79. Qe7+ {[%emt 0:00:04]} Kh6 {[%emt 0:00:02]} 80. Qd6+ {[%emt 0:00:18]} Kh5 {[%emt 0:00:02]} 81. Qe7 {[%emt 0:00:13]} g4 {[%emt 0:00:05]} 82. Qe8+ {[%emt 0:00:11]} Kg5 {[%emt 0:00:05]} 83. Qe7+ {[%emt 0:00:09]} Kg6 {[%emt 0:01:14]} 84. Qe8+ {[%emt 0:00:06]} Kf6 {[%emt 0:00:12]} 85. Qf8+ {[%emt 0:00:13]} Ke5 {[%emt 0:00:05]} 86. Qc5+ {[%emt 0:00:07]} Ke4 {[%emt 0:00:04]} 87. Qc2+ {[%emt 0:00:05]} Kf4 {[%emt 0:00:05]} 88. Qc1+ {[%emt 0:00:04]} Ke5 {[%emt 0:00:10]} 89. Qc5+ {[%emt 0:00:01]} Kf6 {[%emt 0:00:02]} 90. Qf8+ {[%emt 0:00:10]} Kg5 {[%emt 0:00:08]} 91. Qe7+ {[%emt 0:00:15]} Kh5 {[%emt 0:00:05]} 92. Qe8+ {[%emt 0:00:03]} Kh6 {[%emt 0:00:22]} 93. Qh8+ {[%emt 0:00:27]} Kg5 {[%emt 0:00:08]} 94. Qd8+ {[%emt 0:00:16]} Qf6 {[%emt 0:00:48]} 95. Qd5+ {[%emt 0:00:05]} Kf4 {[%emt 0:00:16]} 96. Qxb5 {[%emt 0:00:23]} g3+ {[%emt 0:00:23]} 97. Kg1 {[%emt 0:00:17]} Qd4+ {[%emt 0:00:06]} 98. Kh1 {[%emt 0:00:10]} Qa1+ {[%emt 0:00:03]} 0-1

[Event "FIDE Open World Rapid 2024"]
[Site "New York"]
[Date "2024.12.27"]
[Round "8.30"]
[White "Praggnanandhaa R"]
[Black "Suleymanli, Aydin"]
[Result "1-0"]
[ECO "A50"]
[WhiteElo "2737"]
[BlackElo "2623"]
[Annotator "TA"]
[PlyCount "123"]
[EventDate "2024.12.14"]
[EventType "swiss"]
[EventCountry "USA"]
[SourceTitle "playchess.com"]
[Source "ChessBase"]
[SourceQuality "1"]
[TimeControl "900+10"]

{[%evp 9,123,0,0,-1,3,-12,0,-3,8,14,19,15,12,18,62,59,54,57,31,29,23,0,0,0,0,0,42,39,133,62,85,91,89,89,131,122,105,60,76,60,68,61,77,62,39,39,18,31,119,105,202,205,196,207,202,192,212,141,143,155,147,147,195,196,193,192,316,306,315,322,454,452,454,462,454,461,496,440,500,500,505,427,422,418,403,413,712,720,29970,823,823,798,786,787,776,772,755,743,706,664,896,903,831,783,861,847,1437,1401,1310,1122,1066,987,1832,1660,2445,2372]} 1. d4 {[%emt 0:00:01]} Nf6 {[%emt 0:00:01]} 2. c4 {[%emt 0:00:01]} e6 {[%emt 0:00:02]} 3. Bf4 {[%emt 0:00:02]} Bb4+ {[%emt 0:00:54]} 4. Nd2 {[%emt 0:00:01]} c5 {[%emt 0:00:01]} 5. dxc5 {[%emt 0:00:01]} O-O {[%emt 0:00:19]} 6. Ngf3 {[%emt 0:00:09]} Bxc5 {[%emt 0:00:05]} 7. e3 {[%emt 0:00:02]} Nc6 {[%emt 0:00:11]} 8. Be2 {[%emt 0:00:04] The position is equal.} d5 {[%emt 0:00:11]} 9. O-O {[%emt 0:00:07]} b6 {[%emt 0:00:07]} 10. cxd5 {[%emt 0:04:02]} Nxd5 {[%emt 0:00:05][%cal Bf6d5,Bd5e3,Be3f1][%mdl 32]} 11. Bg3 {[%emt 0:00:08]} Bxe3 {[%emt 0:02:15]} 12. fxe3 {[%emt 0:00:10]} Nxe3 {[%emt 0:00:02]} 13. Qa4 {[%emt 0:00:52]} Nxf1 {[%emt 0:00:09]} 14. Bxf1 {[%emt 0:00:06]} Bb7 {[%emt 0:00:52]} 15. Ne4 {[%emt 0:00:24]} Ne7 {[%emt 0:00:35]} 16. Rd1 $36 {[%emt 0:00:30][%mdl 2048] White has the initiative.} Qe8 {[%emt 0:03:52]} 17. Qb4 {[%emt 0:00:05] Hoping for Bb5.} Bxe4 {[%emt 0:01:29]} 18. Qxe4 {[%emt 0:00:02] Black is weak on the dark squares} Nf5 {[%emt 0:00:15]} ({Black should try} 18... Qc6 $14 19. Qxc6 Nxc6) 19. Be5 {[%emt 0:01:26] White has more active pieces.} (19. Be1 $16) 19... Rd8 $14 {[%emt 0:02:26]} 20. Bd3 {[%emt 0:00:03][%mdl 1024] Strongly threatening g4. White has strong compensation.} Qe7 {[%emt 0:01:26]} 21. Rc1 {[%emt 0:02:25] Wards off Qc5+. aiming for Rc7.} h5 {[%emt 0:01:39]} 22. h3 $1 {[%emt 0:02:12]} Qd7 {[%emt 0:00:26]} 23. Bb1 {[%emt 0:00:52] Black must now prevent g4. A strong pair of Bishops.} Qd5 $1 {[%emt 0:00:53]} 24. Qe1 {[%emt 0:01:59]} Rc8 {[%emt 0:00:09]} 25. Rd1 {[%emt 0:00:13]} Qc5+ {[%emt 0:00:04]} 26. Kh2 $1 {[%emt 0:00:03] Threatens to win with Bxf5.} Qe3 {[%emt 0:00:48]} 27. Qb4 {[%emt 0:00:48]} a5 {[%emt 0:00:09]} 28. Qa4 {[%emt 0:00:05]} Rc5 {[%emt 0:00:10]} (28... b5 $14 29. Qf4 (29. Qxb5 $2 Rc5 $19) (29. Qxa5 Nh4 $11) 29... Rfd8 30. Rxd8+ Rxd8) 29. Re1 {[%emt 0:01:32]} Qf2 {[%emt 0:00:12]} (29... Qh6 $16 30. Re2 Rd5) 30. Bxf5 $18 {[%emt 0:00:09]} exf5 {[%emt 0:00:02] [#]} 31. Bd4 $1 {[%emt 0:00:01]} Qc2 {[%emt 0:00:06]} 32. Qd7 {[%emt 0:00:22]} Rc7 {[%emt 0:00:16]} 33. Qd6 {[%emt 0:00:06][%cal Of3h4] Nh4! is the strong threat.} Qc6 {[%emt 0:00:15]} 34. Qe5 {[%emt 0:00:19][%csl Gd4][%cal Re5g7]} f6 {[%emt 0:00:01]} 35. Qxf5 {[%emt 0:00:02]} Re8 {[%emt 0:00:14]} (35... Rff7 $16 36. Qxh5 Rfe7) 36. Rxe8+ {[%emt 0:00:49]} (36. Qxh5 Rxe1 37. Nxe1 Qd6+ 38. g3 Qxd4 39. Qe8+ Kh7 40. Qh5+ Kg8 41. Qe8+ Kh7 42. Qh5+ Kg8 $11) 36... Qxe8 {[%emt 0:00:01]} 37. Bxb6 {[%emt 0:00:01]} Rb7 {[%emt 0:00:18]} (37... Rc1 $142 38. Bf2 (38. Qxa5 Qb8+ 39. g3 h4 $11) 38... a4 39. Qd5+ Kh7) 38. Qd5+ {[%emt 0:00:29]} (38. Bxa5 $2 Rb5 (38... Rxb2 39. a4 $16) 39. Qd3 Rxa5 $19) 38... Qf7 {[%emt 0:00:02]} 39. Qxa5 {[%emt 0:00:03]} g5 {[%emt 0:00:25]} (39... Qd7 $142) 40. Bd4 {[%emt 0:00:23]} g4 {[%emt 0:00:11]} 41. hxg4 {[%emt 0:00:07]} hxg4 {[%emt 0:00:02]} 42. Nh4 {[%emt 0:00:01]} Rd7 {[%emt 0:00:16]} 43. Bc3 {[%emt 0:00:41]} Rd5 {[%emt 0:00:04]} 44. Qb6 {[%emt 0:00:13]} Kg7 {[%emt 0:00:14]} 45. Qf2 {[%emt 0:00:02]} Qe6 {[%emt 0:00:12]} 46. Qf4 {[%emt 0:00:11]} Kf7 {[%emt 0:00:09]} 47. a4 {[%emt 0:00:09]} Rd3 {[%emt 0:00:11]} (47... Rg5 $142 48. Kg3 Rd5) 48. Nf5 {[%emt 0:00:11]} Qe2 {[%emt 0:00:12] [#]} 49. Qxg4 {[%emt 0:00:23]} Qxg4 {[%emt 0:00:11] White is clearly winning.} 50. Nh6+ {[%emt 0:00:00]} Ke6 {[%emt 0:00:01]} 51. Nxg4 {[%emt 0:00:01]} f5 {[%emt 0:00:00]} 52. Ne5 {[%emt 0:00:03]} Rd1 {[%emt 0:00:01]} 53. Kg3 {[%emt 0:00:05]} Ra1 {[%emt 0:00:03]} 54. a5 {[%emt 0:00:01]} Ra4 {[%emt 0:00:07]} 55. Kf3 {[%emt 0:00:07]} Kd5 {[%emt 0:00:02]} 56. Nd3 {[%emt 0:00:08]} Kd6 {[%emt 0:00:20]} 57. Nf4 {[%emt 0:00:17]} Kc5 {[%emt 0:00:10]} 58. Ne6+ {[%emt 0:00:05]} Kd5 {[%emt 0:00:20] [#]} 59. Nd4 $1 {[%emt 0:00:01]} Ke5 {[%emt 0:00:04]} 60. g3 {[%emt 0:00:09]} Ra2 {[%emt 0:00:13]} 61. Ke3 {[%emt 0:00:07]} Ra4 {[%emt 0:00:06]} 62. Kd3 {[%emt 0:00:03] Weighted Error Value: White=0.12 (very precise) /Black=0.37.  Mistake:       	White=1     	Black=7      Inaccurate:     	White=2     	Black=4      OK:         	White=23    	Black=16     Best:        	White=3     	Black=3      Strong:       	White=2     	Black=1} 1-0

[Event "FIDE Open World Rapid 2024"]
[Site "New York"]
[Date "2024.12.28"]
[Round "8.30"]
[White "Juksta, Karolis"]
[Black "Lodici, Lorenzo"]
[Result "0-1"]
[ECO "A78"]
[WhiteElo "2403"]
[BlackElo "2564"]
[Annotator "ChessBase"]
[PlyCount "114"]
[EventDate "2024.12.14"]
[EventType "swiss"]
[EventCountry "USA"]
[SourceTitle "playchess.com"]
[Source "ChessBase"]
[SourceQuality "1"]
[TimeControl "900+10"]

1. d4 {[%emt 0:00:02]} Nf6 {[%emt 0:00:15]} 2. c4 {[%emt 0:00:03]} e6 {[%emt 0:00:08]} 3. Nf3 {[%emt 0:00:06]} c5 {[%emt 0:00:06]} 4. d5 {[%emt 0:00:22]} exd5 {[%emt 0:00:01]} 5. cxd5 {[%emt 0:00:01]} d6 {[%emt 0:00:00]} 6. Nc3 {[%emt 0:00:02]} g6 {[%emt 0:00:01]} 7. Nd2 {[%emt 0:00:02]} Bg7 {[%emt 0:00:01]} 8. e4 {[%emt 0:00:01]} O-O {[%emt 0:00:02]} 9. Be2 {[%emt 0:00:02]} Re8 {[%emt 0:00:01]} 10. O-O {[%emt 0:00:05]} Na6 {[%emt 0:00:02]} 11. Re1 {[%emt 0:01:18]} Nc7 {[%emt 0:00:15]} 12. a4 {[%emt 0:00:08]} b6 {[%emt 0:00:33]} 13. f3 {[%emt 0:01:23]} Nh5 {[%emt 0:00:01]} 14. Nf1 {[%emt 0:04:08]} Be5 {[%emt 0:00:59]} 15. g3 {[%emt 0:04:04]} Bh3 {[%emt 0:00:11]} 16. Be3 {[%emt 0:01:04]} a6 {[%emt 0:01:19]} 17. Qd2 {[%emt 0:00:36]} Rb8 {[%emt 0:00:01]} 18. g4 {[%emt 0:00:11]} Nf6 {[%emt 0:01:22]} 19. Ng3 {[%emt 0:00:06]} b5 {[%emt 0:00:03]} 20. axb5 {[%emt 0:00:04]} axb5 {[%emt 0:00:01]} 21. g5 {[%emt 0:01:32]} Nd7 {[%emt 0:00:27]} 22. f4 {[%emt 0:00:02]} Bg7 {[%emt 0:00:01]} 23. Nd1 {[%emt 0:00:14]} Nb6 {[%emt 0:00:15]} 24. Nf2 {[%emt 0:00:33]} Bd7 {[%emt 0:00:01]} 25. Rab1 {[%emt 0:00:41]} Nc4 {[%emt 0:00:11]} 26. Bxc4 {[%emt 0:00:01]} bxc4 {[%emt 0:00:02]} 27. f5 {[%emt 0:00:53]} gxf5 {[%emt 0:00:56]} 28. exf5 {[%emt 0:00:10]} Rxb2 {[%emt 0:00:01]} 29. Rxb2 {[%emt 0:00:07]} c3 {[%emt 0:00:01]} 30. Qc2 {[%emt 0:00:34]} cxb2 {[%emt 0:00:02]} 31. f6 {[%emt 0:00:04]} Nxd5 {[%emt 0:00:27]} 32. fxg7 {[%emt 0:00:26]} Nxe3 {[%emt 0:00:45]} 33. Qxb2 {[%emt 0:00:03]} Qa8 {[%emt 0:00:02]} 34. Nd3 {[%emt 0:00:59]} Qf3 {[%emt 0:00:25]} 35. Qe2 {[%emt 0:00:33]} Qxe2 {[%emt 0:00:24]} 36. Rxe2 {[%emt 0:00:01]} Bg4 {[%emt 0:00:21]} 37. Re1 {[%emt 0:00:09]} Kxg7 {[%emt 0:00:54]} 38. Nf2 {[%emt 0:00:12]} Kf8 {[%emt 0:01:53]} 39. Rxe3 {[%emt 0:00:13]} Rxe3 {[%emt 0:00:02]} 40. Nxg4 {[%emt 0:00:01]} Ra3 {[%emt 0:00:01]} 41. Ne4 {[%emt 0:00:23]} c4 {[%emt 0:00:01]} 42. Nxd6 {[%emt 0:00:16]} c3 {[%emt 0:00:01]} 43. Ne3 {[%emt 0:00:01]} Ra1+ {[%emt 0:00:36]} 44. Kf2 {[%emt 0:00:06]} c2 {[%emt 0:00:18]} 45. Nxc2 {[%emt 0:00:01]} Ra2 {[%emt 0:00:01]} 46. Kg3 {[%emt 0:00:09]} Rxc2 {[%emt 0:00:02]} 47. h4 {[%emt 0:00:24]} Ke7 {[%emt 0:00:01]} 48. Ne4 {[%emt 0:00:03]} Ke6 {[%emt 0:00:58]} 49. Nf6 {[%emt 0:00:27]} Kf5 {[%emt 0:00:01]} 50. Nxh7 {[%emt 0:00:05]} Rc3+ {[%emt 0:00:01]} 51. Kf2 {[%emt 0:00:13]} Kg4 {[%emt 0:00:01]} 52. Nf6+ {[%emt 0:00:14]} Kxh4 {[%emt 0:00:03]} 53. Ne4 {[%emt 0:00:01]} Rc4 {[%emt 0:00:18]} 54. Nd6 {[%emt 0:00:17]} Rf4+ {[%emt 0:00:02]} 55. Ke3 {[%emt 0:00:02]} Kxg5 {[%emt 0:00:02]} 56. Ne4+ {[%emt 0:00:01]} Rxe4+ {[%emt 0:00:01]} 57. Kxe4 {[%emt 0:00:08]} Kg4 {[%emt 0:00:01]} 0-1

[Event "FIDE Open World Rapid 2024"]
[Site "New York"]
[Date "2024.12.27"]
[Round "8.31"]
[White "Ivanchuk, Vasyl"]
[Black "Aravindh, Chithambaram VR."]
[Result "1/2-1/2"]
[ECO "C34"]
[WhiteElo "2630"]
[BlackElo "2718"]
[Annotator "ChessBase"]
[PlyCount "60"]
[EventDate "2024.12.14"]
[EventType "swiss"]
[EventCountry "USA"]
[SourceTitle "playchess.com"]
[Source "ChessBase"]
[SourceQuality "1"]
[TimeControl "900+10"]

1. e4 {[%emt 0:00:41]} e5 {[%emt 0:00:14]} 2. f4 {[%emt 0:00:02]} exf4 {[%emt 0:00:06]} 3. Bc4 {[%emt 0:00:01]} Nc6 {[%emt 0:00:12]} 4. Nf3 {[%emt 0:00:09]} g5 {[%emt 0:01:05]} 5. d4 {[%emt 0:00:03]} Bg7 {[%emt 0:00:24]} 6. h4 {[%emt 0:00:41]} h6 {[%emt 0:00:02]} 7. d5 {[%emt 0:00:01]} Ne5 {[%emt 0:00:39]} 8. Nxe5 {[%emt 0:00:01]} Bxe5 {[%emt 0:00:01]} 9. d6 {[%emt 0:00:01]} c6 {[%emt 0:02:33]} 10. Qh5 {[%emt 0:07:56]} Qf6 {[%emt 0:00:41]} 11. Nd2 {[%emt 0:00:01]} Rh7 {[%emt 0:04:43]} 12. hxg5 {[%emt 0:02:03]} Qxd6 {[%emt 0:00:04]} 13. Nf3 {[%emt 0:03:01]} Qb4+ {[%emt 0:01:41]} 14. Bd2 {[%emt 0:00:01]} Qxc4 {[%emt 0:00:01]} 15. Nxe5 {[%emt 0:00:01]} Qxe4+ {[%emt 0:00:05]} 16. Kf1 {[%emt 0:00:06]} Qf5 {[%emt 0:03:31]} 17. Re1 {[%emt 0:02:26]} Kd8 {[%emt 0:00:01]} 18. Rh4 {[%emt 0:00:03]} d6 {[%emt 0:00:48]} 19. Rxf4 {[%emt 0:00:10]} hxg5 {[%emt 0:00:01]} 20. Nxf7+ {[%emt 0:00:48]} Kc7 {[%emt 0:00:11]} 21. Qxg5 {[%emt 0:00:06]} Rxf7 {[%emt 0:01:12]} 22. Qxg8 {[%emt 0:00:01]} Qb5+ {[%emt 0:00:01]} 23. Kg1 {[%emt 0:00:22]} Rxf4 {[%emt 0:00:02]} 24. Bxf4 {[%emt 0:00:01]} Qc5+ {[%emt 0:00:02]} 25. Re3 {[%emt 0:00:19]} Qd4 {[%emt 0:00:27]} 26. Qf8 {[%emt 0:00:11]} Qd1+ {[%emt 0:00:12]} 27. Kh2 {[%emt 0:00:06]} Qh5+ {[%emt 0:00:05]} 28. Kg3 {[%emt 0:00:11]} Qg6+ {[%emt 0:00:03]} 29. Kh2 {[%emt 0:00:10]} Qh5+ {[%emt 0:00:05]} 30. Kg1 {[%emt 0:00:15]} Qd1+ {[%emt 0:00:02]} 1/2-1/2

[Event "FIDE Open World Rapid 2024"]
[Site "New York"]
[Date "2024.12.28"]
[Round "8.31"]
[White "Bilych, Oleksii"]
[Black "Adewumi, Tanitoluwa"]
[Result "0-1"]
[ECO "A09"]
[WhiteElo "2435"]
[BlackElo "2349"]
[Annotator "ChessBase"]
[PlyCount "116"]
[EventDate "2024.12.14"]
[EventType "swiss"]
[EventCountry "USA"]
[SourceTitle "playchess.com"]
[Source "ChessBase"]
[SourceQuality "1"]
[TimeControl "900+10"]

1. Nf3 {[%emt 0:00:02]} d5 {[%emt 0:00:01]} 2. g3 {[%emt 0:00:03]} g6 {[%emt 0:00:04]} 3. Bg2 {[%emt 0:00:15]} Bg7 {[%emt 0:00:05]} 4. c4 {[%emt 0:00:47]} d4 {[%emt 0:00:25]} 5. O-O {[%emt 0:00:13]} Nf6 {[%emt 0:00:19]} 6. d3 {[%emt 0:00:12]} O-O {[%emt 0:00:03]} 7. e3 {[%emt 0:00:09]} dxe3 {[%emt 0:00:34]} 8. fxe3 {[%emt 0:00:42]} Nc6 {[%emt 0:00:22]} 9. Nc3 {[%emt 0:00:23]} e5 {[%emt 0:00:06]} 10. d4 {[%emt 0:03:56]} Bg4 {[%emt 0:00:41]} 11. dxe5 {[%emt 0:03:20]} Nd7 {[%emt 0:00:30]} 12. h3 {[%emt 0:00:25]} Be6 {[%emt 0:00:13]} 13. Qe2 {[%emt 0:02:33]} Ndxe5 {[%emt 0:00:17]} 14. Rd1 {[%emt 0:00:25]} Qc8 {[%emt 0:00:37]} 15. Nxe5 {[%emt 0:00:09]} Nxe5 {[%emt 0:00:06]} 16. Nd5 {[%emt 0:00:07]} Re8 {[%emt 0:00:01]} 17. Qf1 {[%emt 0:00:40]} c6 {[%emt 0:00:48]} 18. Nf4 {[%emt 0:00:17]} Nxc4 {[%emt 0:00:32]} 19. Rb1 {[%emt 0:00:18]} Bf5 {[%emt 0:00:36]} 20. e4 {[%emt 0:01:07]} Bxe4 {[%emt 0:00:12]} 21. Bxe4 {[%emt 0:00:01]} Rxe4 {[%emt 0:00:01]} 22. Qf3 {[%emt 0:00:01]} Qf5 {[%emt 0:00:12]} 23. b3 {[%emt 0:00:22]} Ne5 {[%emt 0:00:10]} 24. Qf2 {[%emt 0:00:08]} g5 {[%emt 0:00:43]} 25. Nh5 {[%emt 0:00:01]} Qxh3 {[%emt 0:00:17]} 26. Nxg7 {[%emt 0:00:17]} g4 {[%emt 0:00:02]} 27. Qg2 {[%emt 0:00:33]} Nf3+ {[%emt 0:00:02]} 28. Kf1 {[%emt 0:00:00]} Nh2+ {[%emt 0:00:32]} 29. Kg1 {[%emt 0:00:05]} Qxg2+ {[%emt 0:00:02]} 30. Kxg2 {[%emt 0:00:04]} Re2+ {[%emt 0:00:01]} 31. Kh1 {[%emt 0:00:07]} Nf3 {[%emt 0:00:23]} 32. Rb2 {[%emt 0:00:01]} Re5 {[%emt 0:01:27]} 33. Rc2 {[%emt 0:00:11]} Kxg7 {[%emt 0:03:21]} 34. Bb2 {[%emt 0:00:00]} Rae8 {[%emt 0:01:40]} 35. Re2 {[%emt 0:00:01]} R8e7 {[%emt 0:00:23]} 36. Kg2 {[%emt 0:00:21]} h5 {[%emt 0:00:25]} 37. Rd6 {[%emt 0:00:27]} f6 {[%emt 0:00:14]} 38. Bxe5 {[%emt 0:00:03]} Nxe5 {[%emt 0:00:03]} 39. Red2 {[%emt 0:00:15]} Kg6 {[%emt 0:00:32]} 40. Kf2 {[%emt 0:00:15]} Kf5 {[%emt 0:00:35]} 41. R2d4 {[%emt 0:00:10]} Kg5 {[%emt 0:00:35]} 42. Rd8 {[%emt 0:00:05]} Rh7 {[%emt 0:00:38]} 43. Rg8+ {[%emt 0:00:20]} Ng6 {[%emt 0:00:01]} 44. Kg2 {[%emt 0:01:24]} Kf5 {[%emt 0:00:25]} 45. Rd1 {[%emt 0:00:25]} Kg5 {[%emt 0:01:39]} 46. Rd2 {[%emt 0:00:26]} h4 {[%emt 0:00:28]} 47. gxh4+ {[%emt 0:00:06]} Rxh4 {[%emt 0:00:01]} 48. Rd7 {[%emt 0:00:07]} Kf5 {[%emt 0:00:05]} 49. Rxb7 {[%emt 0:00:11]} Nf4+ {[%emt 0:00:02]} 50. Kg1 {[%emt 0:00:02]} Ke4 {[%emt 0:00:10]} 51. Rf8 {[%emt 0:00:10]} Rh6 {[%emt 0:01:10]} 52. Rbf7 {[%emt 0:00:25]} Nd5 {[%emt 0:00:16]} 53. Kg2 {[%emt 0:00:12]} Kf4 {[%emt 0:00:02]} 54. Rxa7 {[%emt 0:00:15]} Ne3+ {[%emt 0:00:13]} 55. Kg1 {[%emt 0:00:00]} f5 {[%emt 0:00:07]} 56. Re7 {[%emt 0:00:02]} Rh3 {[%emt 0:00:21]} 57. a4 {[%emt 0:00:06]} Rf3 {[%emt 0:00:08]} 58. Rg8 {[%emt 0:00:26]} Kg3 {[%emt 0:00:16]} 0-1